Cogmind - Beta 13 @@@ ROGUE MODE // 2024.06.28 @ 13:54:20 Player: buwwet Result: Destroyed by G-47 Trooper with Particle Gun Performance ------------- Evolutions (3) 1500 Regions Visited (7) 1400 Robots Destroyed (32) 160 Value Destroyed (1213) 1213 Prototype IDs (1) 20 Alien Tech Used (0) 0 Bonus (387) 387 TOTAL SCORE: 4680 Bonus ------- Follower Combat Kills 87 Aligned with FarCom 300 Cogmind --------- Core Integrity 0/700 Matter 290/300 Energy 100/100 System Corruption 1% Temperature Cool (9) Movement Core (1100) Ox21 Location -7/Lower Caves Parts ------- > --- POWER (2) -------- (None) > --- PROPULSION (3) --- (None) > --- UTILITY (4) ------ Improved Heat Sink System Shield > --- WEAPON (4) ------- AWS/Autocannon Ripper > --- INVENTORY (5) ---- System Shield Heavy Explosive Trap Peak State ------------ > --- POWER ------------ Light Deuterium Engine Light Nuclear Core > --- PROPULSION ------- Light Treads Light Treads Aluminum Leg > --- UTILITY ---------- Heat Sink Medium Storage Unit Improved Light Armor Plating System Shield > --- WEAPON ----------- Shock Rifle AWS/Autocannon > --- INVENTORY -------- Medium Treads Aluminum Leg Aluminum Leg Improved Medium Armor Plating Flak Gun Assault Cannon Heavy Explosive Trap [Rating: 51] Favorites ----------- Power Light Ion Engine Engine Light Ion Engine Power Core Light Nuclear Core Propulsion Light Treads Treads Light Treads Leg Aluminum Leg Wheel Wheel Utility Medium Storage Unit Device Terrain Scanner Storage Medium Storage Unit Hackware System Shield Protection Improved Light Armor Plating Weapon Medium Laser Energy Gun Medium Laser Ballistic Gun Flak Gun Ballistic Cannon Battle Cannon Launcher Heavy Missile Launcher Slashing Weapon Ripper Build | -11 -10 -10 -10 -9 -8 -7 -7 ------- Run | Yrd Mat Min Exi Min Mat Fac Low Slots Evolved 6 | . . . . . 4 2 . Power 1 | . . . . . . 1 . Propulsion 1 | . . . . . 1 . . Utility 2 | . . . . . 2 . . Weapon 2 | . . . . . 1 1 . Parts Attached 66 | 6 4 . . 4 14 26 12 Power 9 | 1 2 . . 1 2 1 2 Engine 4 | 1 1 . . 1 . 1 . Core 5 | . 1 . . . 2 . 2 Reactor . | . . . . . . . . Propulsion 19 | 2 . . . 1 5 8 3 Treads 8 | 1 . . . . 1 4 2 Leg 10 | . . . . 1 4 4 1 Wheel 1 | 1 . . . . . . . Hover . | . . . . . . . . Flight . | . . . . . . . . Utility 17 | 1 2 . . 1 3 7 3 Device 6 | . 1 . . 1 1 2 1 Storage 5 | 1 1 . . . . 1 2 Processor . | . . . . . . . . Hackware 1 | . . . . . . 1 . Protection 5 | . . . . . 2 3 . Artifact . | . . . . . . . . Weapon 21 | 2 . . . 1 4 10 4 Energy Gun 8 | 2 . . . . 3 3 . Energy Cannon . | . . . . . . . . Ballistic Gun 3 | . . . . . . 2 1 Ballistic Cannon 7 | . . . . 1 1 4 1 Launcher 1 | . . . . . . 1 . Special Weapon . | . . . . . . . . Impact Weapon . | . . . . . . . . Slashing Weapon 2 | . . . . . . . 2 Piercing Weapon . | . . . . . . . . Special Melee Weapon . | . . . . . . . . Unidentified Prototypes 1 | . . . . . . 1 . Parts Lost 29 | . . . . 1 3 14 11 Power 4 | . . . . . 1 2 1 Propulsion 11 | . . . . 1 1 5 4 Utility 5 | . . . . . . 3 2 Weapon 9 | . . . . . 1 4 4 Highest Loss Streak 13 | . . . . 1 3 13 6 To Critical Strikes 1 | . . . . . . 1 . Average Slot Usage (%) 86 | . 95 100 100 100 96 77 59 Engine 7 | . 14 14 14 14 4 4 . Core 2 | . . . . . 4 4 1 Treads 10 | . 14 14 14 14 9 9 4 Leg 7 | . . . . 9 16 8 8 Wheel 4 | . 14 14 14 4 . . . Device 10 | . 10 14 14 14 17 5 2 Storage 10 | . 14 14 14 14 9 7 11 Hackware 2 | . . . . . . 5 7 Protection 2 | . . . . . 8 5 . Energy Gun 18 | . 28 28 28 27 15 13 . Ballistic Gun 2 | . . . . . . 4 13 Ballistic Cannon 3 | . . . . . 8 4 . Naked Turns . | . . . . . . . . Heaviest Build 83 | 12 20 18 18 19 32 83 64 Greatest Support 68 | 20 20 20 20 20 40 68 56 Greatest Overweight (x) 24 | . . . . . 2 24 21 Average Overweight (x) . | . . . . . . . . Largest Inventory Capacity 10 | 8 10 10 10 10 10 10 10 Average Capacity 9 | 6 9 10 10 10 10 10 9 Most Carried 10 | 4 10 10 10 10 10 10 10 Average Carried 8 | 2 7 10 9 9 8 7 7 Final Capacity 10 | 8 10 10 10 10 10 10 5 Final Carried 10 | 4 10 10 10 10 10 8 2 Class Distribution -------------------- 44% | Mutant 42% | Skirmisher 5% | Gunner 4% | Scavenger-Mutant Dominant Class ---------------- Mutant | -10/Materials Mutant | -10/Mines Mutant | -10/Exiles Mutant | -9/Mines Skirmisher | -8/Materials Skirmisher | -7/Factory Gunner | -7/Lower Caves Resources | -11 -10 -10 -10 -9 -8 -7 -7 ----------- Run | Yrd Mat Min Exi Min Mat Fac Low Matter Collected 983 | 92 100 . . 133 200 121 337 Remotely . | . . . . . . . . Salvage Created 1117 | . 100 . . 99 260 435 223 Parts 53 | . 4 . . 4 9 17 19 Haulers Intercepted 1 | . . . . . 1 . . Recyclers Shooed 1 | . . . . . . 1 . Parts Field Recycled . | . . . . . . . . Retrieved Matter . | . . . . . . . . Parts Self-Destructed 17 | . . . . . . . 17 Prevented . | . . . . . . . . Kills | -11 -10 -10 -10 -9 -8 -7 -7 ------- Run | Yrd Mat Min Exi Min Mat Fac Low Combat Hostiles Destroyed 27 | . 2 . . 2 5 10 8 Guns 13 | . 2 . . 2 3 1 5 Cannons 13 | . . . . . 2 8 3 AOE 1 | . . . . . . 1 . Classes Destroyed 9 | . 1 . . . 1 7 . Builder 1 | . . . . . . 1 . Hauler 1 | . . . . . 1 . . Recycler 2 | . . . . . . 2 . Mechanic 1 | . . . . . . 1 . Swarmer 7 | . . . . . . 2 5 Grunt 13 | . 2 . . 2 5 4 . Sentry 4 | . . . . . . 2 2 Hunter 1 | . . . . . . 1 . Programmer 2 | . . . . . . 1 1 Best Kill Streak 5 | . 2 . . 2 4 5 3 Combat Bots Only 5 | . 2 . . 2 4 5 3 Max Kills in Single Turn 2 | . 1 . . 1 1 2 1 Gunslinging . | . . . . . . . . Exploded 1 | . . . . . . 1 . Melee . | . . . . . . . . Uniques/NPCs Destroyed . | . . . . . . . . Combat | -11 -10 -10 -10 -9 -8 -7 -7 -------- Run | Yrd Mat Min Exi Min Mat Fac Low Hostile Shots Fired 562 | . 8 4 . 13 42 338 157 Missed 192 | . 3 2 . 1 11 129 46 Damage Taken 4890 | . 72 27 . 189 519 2574 1509 Core 845 | . . . . 57 83 321 384 Absorbed by Shields . | . . . . . . . . Redirected to Shielding 9 | . . . . . 9 . . Core Remaining (%) 87 | 100 . . . 77 84 . . Volleys Fired 72 | . 9 . . 8 19 20 16 Largest 4 | . 2 . . 2 3 4 2 Hottest 216 | . 90 . . 90 144 216 56 Shots Fired 179 | . 18 . . 16 40 63 42 Gun 119 | . 18 . . 16 21 33 31 Cannon 58 | . . . . . 19 28 11 Launcher 2 | . . . . . . 2 . Special . | . . . . . . . . Kinetic 94 | . . . . . 19 33 42 Thermal 49 | . 9 . . 8 19 13 . Explosive 2 | . . . . . . 2 . Electromagnetic 34 | . 9 . . 8 2 15 . Robot Hit Streak 17 | . 6 . . 7 14 17 7 Robot Miss Streak 9 | . 1 . . 2 3 5 9 Penetration Max . | . . . . . . . . Secondary Targets 2 | . . . . 1 . . 1 Max Gunslinging Chain 1 | . . . . 1 . . 1 Autonomous 35 | . . . . . . 24 11 Shots Hit Robots 116 | . 13 . . 9 26 38 30 Core Hits 64 | . 5 . . 4 11 22 22 Critical Kills . | . . . . . . . . Critical Parts Destroyed . | . . . . . . . . Critical Strikes 8 | . 3 . . . 3 2 . Burn 5 | . 3 . . . 1 1 . Blast 3 | . . . . . 2 1 . Melee Attacks . | . . . . . . . . Impact . | . . . . . . . . Slashing . | . . . . . . . . Piercing . | . . . . . . . . Sneak Attacks . | . . . . . . . . Combat Hostiles . | . . . . . . . . Follow-up Attacks . | . . . . . . . . Damage Inflicted 4190 | . 163 . . 202 465 2380 980 Guns 1171 | . 163 . . 122 181 288 417 Cannons 2589 | . . . . . 284 1742 563 Explosions 430 | . . . . 80 . 350 . Melee . | . . . . . . . . Ramming . | . . . . . . . . Kinetic 3122 | . . . . . 284 1858 980 Thermal 516 | . 75 . . 117 137 187 . Explosive 248 | . . . . . . 248 . Electromagnetic 304 | . 88 . . 85 44 87 . Impact . | . . . . . . . . Slashing . | . . . . . . . . Piercing . | . . . . . . . . Highest Corruption 1 | . . . . . . . 1 Average Corruption 1 | . . . . . . . 1 Corruption Purged . | . . . . . . . . Corruption Blocked . | . . . . . . . . Effects 1 | . . . . . . . 1 Energy Discharges 1 | . . . . . . . 1 Overload Shots . | . . . . . . . . Overflow Damage 219 | . . . . . . 195 24 Projectiles 205 | . . . . . . 181 24 Explosions 14 | . . . . . . 14 . Melee . | . . . . . . . . Knockbacks 19 | . . . . . 5 10 4 Impact . | . . . . . . . . Kinetic 17 | . . . . . 5 8 4 Secondary 2 | . . . . . . 2 . Self-Inflicted Damage 55 | . . . . 14 . 41 . Shots 2 | . . . . 1 . 1 . Rammed . | . . . . . . . . Targets Rammed . | . . . . . . . . Kicked . | . . . . . . . . Crushed . | . . . . . . . . Highest Temperature 472 | . 249 . . 261 50 472 9 Average Temperature 138 | . 108 . . 127 15 237 6 Received Heat Transfer 1401 | . 39 15 . 102 297 636 312 Effects 13 | . 3 . . 1 . 9 . Shutdowns 3 | . . . . . . 3 . Interference 8 | . 3 . . 1 . 4 . Matter Decay 1 | . . . . . . 1 . Short Circuit 1 | . . . . . . 1 . Siege Activations . | . . . . . . . . Robots Corrupted . | . . . . . . . . Combat Hostiles . | . . . . . . . . Parts Fried 1 | . . . . . . 1 . Impact Corruptions . | . . . . . . . . Robots Melted . | . . . . . . . . Combat Hostiles . | . . . . . . . . Parts Melted 5 | . 4 . . . . 1 . Heat Transferred 1495 | . 444 . . 211 481 359 . Parts Sabotaged . | . . . . . . . . Parts Stolen . | . . . . . . . . Parts Stripped . | . . . . . . . . Power Chain Reactions 2 | . . . . 1 . 1 . Alert | -11 -10 -10 -10 -9 -8 -7 -7 ------- Run | Yrd Mat Min Exi Min Mat Fac Low Peak Influence 184 | . 50 15 . 65 183 184 . Initial 25 | . . . . . 25 16 . Average 33 | . . 14 . 49 42 42 . Maximum Alert Level . | . . . . . . . . Low Security (%) 100 | 100 100 100 . 100 100 100 . Level 1 . | . . . . . . . . Level 2 . | . . . . . . . . Level 3 . | . . . . . . . . Level 4 . | . . . . . . . . Level 5 . | . . . . . . . . High Security . | . . . . . . . . Max Security . | . . . . . . . . Squads Dispatched 4 | . . . . 1 2 1 . Investigation . | . . . . . . . . Extermination 1 | . . . . . . 1 . Reinforcement 2 | . . . . . 2 . . Assault 1 | . . . . 1 . . . Garrison . | . . . . . . . . Intercept . | . . . . . . . . Searches Triggered . | . . . . . . . . Construction Impeded . | . . . . . . . . Haulers Reinforced . | . . . . . . . . Active Scanning Responses . | . . . . . . . . Cargo Convoy Interrupts . | . . . . . . . . Stealth | -11 -10 -10 -10 -9 -8 -7 -7 --------- Run | Yrd Mat Min Exi Min Mat Fac Low Distress Signals . | . . . . . . . . Communications Jammed . | . . . . . . . . Distress Signals . | . . . . . . . . Times Spotted 68 | . 3 7 . 5 10 17 26 Peak Tracking Total 13 | . 2 11 . 4 5 9 13 Tactical Retreats 6 | . . . . . 2 1 3 Traps | -11 -10 -10 -10 -9 -8 -7 -7 ------- Run | Yrd Mat Min Exi Min Mat Fac Low Traps Triggered . | . . . . . . . . Indirectly . | . . . . . . . . Trap Hack Attempts . | . . . . . . . . Triggered . | . . . . . . . . Disarmed . | . . . . . . . . Reprogrammed . | . . . . . . . . Reused . | . . . . . . . . Traps Extracted . | . . . . . . . . Installed . | . . . . . . . . Triggered . | . . . . . . . . Most Traps Carried 2 | . . . . 2 2 1 1 Machines | -11 -10 -10 -10 -9 -8 -7 -7 ---------- Run | Yrd Mat Min Exi Min Mat Fac Low Machines Disabled . | . . . . . . . . Max in Single Turn . | . . . . . . . . Machines Repaired . | . . . . . . . . Machines Dismantled . | . . . . . . . . Machines Sabotaged . | . . . . . . . . Overloaded Fab Kills . | . . . . . . . . Hacking | -11 -10 -10 -10 -9 -8 -7 -7 --------- Run | Yrd Mat Min Exi Min Mat Fac Low Machines Accessed 11 | . 3 . 3 . . 5 . Terminals 5 | . 3 . . . . 2 . Fabricators . | . . . . . . . . Repair Stations . | . . . . . . . . Recycling Units 2 | . . . . . . 2 . Scanalyzers 1 | . . . . . . 1 . Garrison Access . | . . . . . . . . Total Hacks 32 | . 5 . 15 . . 12 . Successful 20 | . . . 15 . . 5 . Failed 12 | . 5 . . . . 7 . Catastrophic 3 | . 2 . . . . 1 . Database Lockouts . | . . . . . . . . Manual 10 | . 5 . 1 . . 4 . Terminals 9 | . 5 . . . . 4 . Fabricators . | . . . . . . . . Repair Stations . | . . . . . . . . Recycling Units 7 | . . . . . . 7 . Scanalyzers 1 | . . . . . . 1 . Garrison Access . | . . . . . . . . Terminal Hacks 16 | . . . 15 . . 1 . Record 15 | . . . 15 . . . . Unreport Threat 1 | . . . . . . 1 . Fabricator Hacks . | . . . . . . . . Repair Station Hacks . | . . . . . . . . Recycling Unit Hacks 4 | . . . . . . 4 . Process 1 | . . . . . . 1 . Report Inventory 1 | . . . . . . 1 . Retrieve Matter 2 | . . . . . . 2 . Scanalyzer . | . . . . . . . . Garrison Access Hacks . | . . . . . . . . Unauthorized Hacks . | . . . . . . . . Terminals . | . . . . . . . . Fabricators . | . . . . . . . . Repair Stations . | . . . . . . . . Recycling Units . | . . . . . . . . Scanalyzers . | . . . . . . . . Garrison Access . | . . . . . . . . Data Cores Recovered . | . . . . . . . . Used . | . . . . . . . . Hacking Detections 8 | . 3 . . . . 5 . Full Trace Events . | . . . . . . . . Feedback Events . | . . . . . . . . Feedback Blocked . | . . . . . . . . Robot Schematics Acquired . | . . . . . . . . Robots Built . | . . . . . . . . Authchips . | . . . . . . . . Time . | . . . . . . . . Total Robot Build Rating . | . . . . . . . . Part Schematics Acquired . | . . . . . . . . Parts Built . | . . . . . . . . Authchips . | . . . . . . . . Time . | . . . . . . . . Total Part Build Rating . | . . . . . . . . Parts Repaired . | . . . . . . . . Time . | . . . . . . . . Parts Recycled . | . . . . . . . . Recycled Matter 76 | . . . . . . 76 . Retrieved Matter 76 | . . . . . . 76 . Retrieved Components . | . . . . . . . . Parts Scanalyzed . | . . . . . . . . Part Schematics Acquired . | . . . . . . . . Parts Damaged . | . . . . . . . . Bothacking | -11 -10 -10 -10 -9 -8 -7 -7 ------------ Run | Yrd Mat Min Exi Min Mat Fac Low Used RIF Installer . | . . . . . . . . Robots Hacked . | . . . . . . . . Non-combat . | . . . . . . . . Combat . | . . . . . . . . Robot Hacks Applied . | . . . . . . . . Relay Couplers Released . | . . . . . . . . Fabnet Peak Effective % . | . . . . . . . . Robots Rewired . | . . . . . . . . Allies Hacked . | . . . . . . . . Hacks Repelled . | . . . . . . . . Allies | -11 -10 -10 -10 -9 -8 -7 -7 -------- Run | Yrd Mat Min Exi Min Mat Fac Low Total Allies 4 | . . . . 4 . . . Largest Group 3 | . . . . 3 3 . . Highest-Rated Group 40 | . . . . 40 40 . . Highest-Rated Ally 31 | . . . . 31 16 . . Total Orders . | . . . . . . . . Ally Attacks 23 | . . . . 7 16 . . Total Damage 279 | . . . . 123 156 . . Kills 3 | . . . . 2 1 . . Allies Corrupted 1 | . . . . 1 . . . Allies Melted . | . . . . . . . . Intel | -11 -10 -10 -10 -9 -8 -7 -7 ------- Run | Yrd Mat Min Exi Min Mat Fac Low Robot Analysis Total . | . . . . . . . . Derelict Logs Recovered 2 | . . . . 1 . . 1 Drone Launches . | . . . . . . . . Drone Recoveries . | . . . . . . . . Exploration | -11 -10 -10 -10 -9 -8 -7 -7 ------------- Run | Yrd Mat Min Exi Min Mat Fac Low Turns Passed 3554 | 85 565 25 451 391 576 1001 460 Spaces Moved 1960 | 49 312 15 281 215 278 549 261 Core 7 | 1 . . . . . 2 4 Treads 1457 | 43 312 15 281 215 128 337 126 Legs 491 | . . . . . 150 210 131 Wheels 5 | 5 . . . . . . . Hover . | . . . . . . . . Flight . | . . . . . . . . Fastest Speed 50 | 50 160 160 160 160 120 120 100 Average Speed 155 | 149 160 160 160 160 145 157 149 Slowest Speed 1250 | 160 160 160 160 160 260 1250 1100 Overloaded Moves . | . . . . . . . . Propulsion Burnouts . | . . . . . . . . Robots Hopped . | . . . . . . . . Cave-ins Triggered . | . . . . . . . . Exploration Rate (%) 31 | 4 45 5 68 53 21 17 37 Regions Visited 7 Branch Regions 4 Pre-discovered Areas 1 | . . . . 1 . . . Known Exits Taken . | . . . . . . . . Unknown Exits Taken 7 | 1 1 1 1 1 1 1 . Scrap Searched 2 | . . . . 1 . . 1 Spaces Dug . | . . . . . . . . Terrain Destroyed 33 | . . . . 3 3 23 4 Melee . | . . . . . . . . Projectile 11 | . . . . . 3 4 4 AOE 22 | . . . . 3 . 19 . Terrain Rammed . | . . . . . . . . Walls Destroyed . | . . . . . . . . Machines Disabled . | . . . . . . . . Actions | -11 -10 -10 -10 -9 -8 -7 -7 --------- Run | Yrd Mat Min Exi Min Mat Fac Low Total 2329 | 58 359 16 284 246 413 654 299 Wait 174 | . 26 2 . 16 86 38 6 Move 1953 | 48 311 14 280 214 277 548 261 Hop . | . . . . . . . . Pick Up 31 | 4 7 . 1 2 7 9 1 Fast Attach 28 | 6 1 . . 1 6 7 7 Attach 23 | . . . . 1 5 13 4 Detach 6 | . . . . . 1 4 1 Swap 15 | . 3 . . 2 3 6 1 Drop 27 | . 2 . 3 2 9 9 2 Fire 72 | . 9 . . 8 19 20 16 Melee . | . . . . . . . . Ram . | . . . . . . . . Kick . | . . . . . . . . Crush . | . . . . . . . . Escape Stasis . | . . . . . . . . Rewire . | . . . . . . . . Trap . | . . . . . . . . Miscellaneous . | . . . . . . . . Route ------- -11/Scrapyard -10/Materials (discovered 2 exits: [*Mat] / [*Min]) -10/Mines -10/Exiles -9/Mines -8/Materials -7/Factory -7/Lower Caves (discovered 1 exit: Low) History --------- Turn | Location | Event 6 | -11/Scrapyard | Discovered new exit (range 15) 86 | -11/Scrapyard | Entered Materials 302 | -10/Materials | Build established: Mutant 513 | -10/Materials | Discovered new exit (range 8) 592 | -10/Materials | Discovered new exit (range 7) 651 | -10/Materials | Entered Mines 652 | -10/Mines | Assembled infested the area 668 | -10/Mines | Discovered new exit (range 5) 676 | -10/Mines | Entered Exiles 715 | -10/Exiles | Met 8R-AWN 742 | -10/Exiles | Met EX-HEX 796 | -10/Exiles | Met EX-BIN 824 | -10/Exiles | Aligned with FarCom system 825 | -10/Exiles | Given EX-Vault access code 913 | -10/Exiles | Opened EX-Vault 924 | -10/Exiles | Found Prototype Ballistic Cannon 959 | -10/Exiles | Warned to stay clear of 0b10 Research branches 1004 | -10/Exiles | Met EX-DEC 1111 | -10/Exiles | Discovered new exit (range 12) 1127 | -10/Exiles | Left Exiles lab with AWS/Autocannon 1127 | -10/Exiles | Entered Mines 1128 | -9/Mines | Met a Derelict testing a Signal Generator 1272 | -9/Mines | Found a hidden stash of uninstalled traps 1342 | -9/Mines | Assisted by bots powering up and referring to "LRC-V3" 1412 | -9/Mines | Discovered new exit (range 15) 1492 | -9/Mines | A weapon hastily lodged in a ceiling crevice suddenly fell to the ground 1518 | -9/Mines | Entered Materials 1518 | -8/Materials | Accompanied by 3 allies 1518 | -8/Materials | Evolved 4 slots: Propulsion x1, Utility x2, Weapon x1 1821 | -8/Materials | Lost 3 parts (1p1n1w) 1872 | -8/Materials | Build established: Skirmisher 1968 | -8/Materials | Discovered new exit (range 4) 2094 | -8/Materials | Entered Factory 2094 | -7/Factory | Evolved 2 slots: Power x1, Weapon x1 2599 | -7/Factory | Identified AWS/Autocannon 2786 | -7/Factory | Lost 13 parts (2p4n3u4w) 2858 | -7/Factory | Discovered new exit (range 9) 3095 | -7/Factory | Entered Lower Caves 3096 | -7/Lower Caves | Encountered a Warlord checkpoint 3204 | -7/Lower Caves | Identified exit to Lower Caves 3267 | -7/Lower Caves | Core integrity fell below 50% 3332 | -7/Lower Caves | Attracted the attention of an 0b10 checkpoint 3395 | -7/Lower Caves | Lost 6 parts (1p2n1u2w) 3494 | -7/Lower Caves | Attracted the attention of an 0b10 base 3530 | -7/Lower Caves | Core integrity fell below 20% 3555 | -7/Lower Caves | Destroyed by G-47 Trooper with Particle Gun Last Messages --------------- 03493_ G-47 Trooper springs to life. 03495_ S-27 Virus destroyed. 03500_ Gauss Rifle destroyed. 03519_ Flak Gun destroyed. 03521_ Com. Battery destroyed. 03523_ S-27 Virus destroyed. 03527_ Autogun fries itself beyond repair. 03528_ Med. Treads destroyed. 03532_ Dropped Med. Storage Unit. 03535_ G-47 Trooper knocked back. 03537_ S-27 Virus knocked back. 03541_ Destroyed Lgt. Nuclear Core. 03541_ S-27 Virus destroyed. 03545_ Y-64 Sentinel destroyed. 03547_ S-27 Virus destroyed. 03549_ KE Penetrator fries itself beyond repair. 03549_ S-27 Virus knocked back. 03551_ VTOL Module fries itself beyond repair. 03552_ Critical hit (Burn: +37). 03553_ G-47 Trooper knocked back. Map ----- +----------------------------------------------------+ | ?????????????????????????????????????????????????? | | ?????????????????????????????????????????????????? | | ?????????????????????????????????????????????????? | | ?????????????????????????????????????????????????? | | ??????????????????????????????????? ????????????? | | ???????????????????????????????????? ???????????? | | ????????????????????????????????????? #######????? | | ?????????????????????????????????????? ????? | | ??????????????????????????????????????? ????? | | ???????????????????????????????????????? #????? | | ???????????????????????? ????????????? ###### | | ???????????????????????? ???????????###?# | | ???????????????????????? ??????#????# ?# | | ???????????????????????# ??????# ???# "# ##### | | ???????????????????????# ? ??# ? # "# ##### | | ???????????????????????# ## % ## # "# !% | | ???????????????????????# # # "# | | ???????????????????????# + # "# ##### | | ???????????????????????# %+ # #???? | | ???????????????????????# # " " + #???? | | ???????????????????????#%g# """"" + ##???? | | ???????????????????????#%%# # #????? | | ??????????????????????##g # T# #????? | | ??????????????????????#; #""" "# #????? | | ???????????????????????# #??" ""# #????? | | ???????????????????????# @#[[" """"""# #????? | | ???????????????????????# =%#####//######## #????? | | ???????????????????????# !]% % #????? | | ???????????????????????#$ s%s #????? | | ???????????????????????#####;;###############????? | | ????????????????????????????###??????????????????? | | ?????????????????????????????????????????????????? | | ?????????????????????????????????????????????????? | | ?????????????????????????????????????????????????? | | ?????????????????????????????????????????????????? | | ?????????????????????????????????????????????????? | | ?????????????????????????????????????????????????? | | | | | | | | | | | | | | | | | | | | | | | | | | | +----------------------------------------------------+ Best States ------------- Heat Dissipation 48 Energy Generation 23 Energy Capacity 560 Matter Stores 300 Matter Capacity 300 Sight Range 16 Terrain Scan Range 14 Terrain Scan Density 10 Armor Coverage 375 Utility Shielding 33 Evasion (%) 55 Recoil Reduction 3 Defensive Hacking 10 Item Schematics ----------------- None Robot Schematics ------------------ None Fabricated ------------ Nothing Alien Tech Used ----------------- None Achievements -------------- Slippery One Challenges ------------ None Game ------ Seed MakeshiftAluminumClaymores Manual? 0 Play Time 00:50:31 Cumulative 16.2 hours Start 2024.06.28 @ 10:09:11 End 2024.06.28 @ 13:54:20 Sessions 3 Manual Loads 0 Difficulty Rogue Special Mode None Game No. 15 Rogue 15 Adventurer 0 Explorer 0 Win Type - Total 0 Types 0/0/0/0/0/0/0/0/0 Lore% 19 Gallery% 20 Achievement% 18 Wizard Run 0 Options --------- Layout 1 ASCII 0 Keyboard 0 Movement Arrows Keybinds 0 Fullscreen 2 Font 24/Terminus Map View 50x35 Zoom Use 0% Tactical HUD 1 Map Filters NONE Filters NONE Steam 1 RUN: 48c3f9e4-52cf-4577-997e-2d2a8c029353